Cogmind - Beta 13 @@@ ROGUE MODE // 2024.04.11 @ 15:46:20 Player: Naiya55 Result: Destroyed by Z-Imprinter with Zionite Laser-M Performance ------------- Evolutions (1) 500 Regions Visited (5) 1000 Robots Destroyed (19) 95 Value Destroyed (395) 395 Prototype IDs (0) 0 Alien Tech Used (0) 0 Bonus (577) 577 TOTAL SCORE: 2567 Bonus ------- Met Imprinter 300 Was Imprinted 300 Friendly Fire -23 Cogmind --------- Core Integrity 0/400 Matter 269/300 Energy 125/125 System Corruption 0% Temperature Cool (41) Movement Walking (260) Ox2 Location -7/Deep Caves Parts ------- > --- POWER (1) -------- Light Ion Engine > --- PROPULSION (3) --- Aluminum Leg > --- UTILITY (3) ------ Large Storage Unit Targeting Computer Improved Targeting Computer > --- WEAPON (2) ------- (None) > --- INVENTORY (15) --- Ion Engine Ion Engine Disposable Heat Sink Large Storage Unit Huge Storage Unit Shield Generator Phasing AFG Assault Rifle Light Assault Rifle Light Assault Rifle Light Assault Rifle CR-A16's Pointy Stick Self-destruct Interrupter (50) Self-destruct Interrupter (50) Peak State ------------ > --- POWER ------------ Light Ion Engine > --- PROPULSION ------- Aluminum Leg Aluminum Leg Aluminum Leg > --- UTILITY ---------- Large Storage Unit Targeting Computer Improved Targeting Computer > --- WEAPON ----------- Light Assault Rifle CR-A16's Pointy Stick > --- INVENTORY -------- Ion Engine Ion Engine Disposable Heat Sink Large Storage Unit Huge Storage Unit Shield Generator Phasing AFG Assault Rifle Assault Rifle Light Assault Rifle Light Assault Rifle Light Assault Rifle Heavy Assault Rifle Self-destruct Interrupter Self-destruct Interrupter [Rating: 16] Favorites ----------- Power Light Ion Engine Engine Light Ion Engine Propulsion Aluminum Leg Leg Aluminum Leg Utility Targeting Computer Storage Large Storage Unit Processor Targeting Computer Weapon Light Assault Rifle Ballistic Gun Light Assault Rifle Piercing Weapon CR-A16's Pointy Stick Build | -11 -10 -9 -9 -7 -7 ------- Run | Yrd Mat Mat Min Zio Dee Slots Evolved 2 | . . 2 . . . Power . | . . . . . . Propulsion 1 | . . 1 . . . Utility 1 | . . 1 . . . Weapon . | . . . . . . Parts Attached 20 | 6 1 7 3 2 1 Power 3 | 1 . 1 1 . . Engine 3 | 1 . 1 1 . . Core . | . . . . . . Reactor . | . . . . . . Propulsion 4 | 2 . 2 . . . Treads . | . . . . . . Leg 4 | 2 . 2 . . . Wheel . | . . . . . . Hover . | . . . . . . Flight . | . . . . . . Utility 4 | 1 1 2 . . . Device . | . . . . . . Storage 2 | 1 . 1 . . . Processor 2 | . 1 1 . . . Hackware . | . . . . . . Protection . | . . . . . . Artifact . | . . . . . . Weapon 9 | 2 . 2 2 2 1 Energy Gun . | . . . . . . Energy Cannon . | . . . . . . Ballistic Gun 8 | 2 . 2 2 1 1 Ballistic Cannon . | . . . . . . Launcher . | . . . . . . Special Weapon . | . . . . . . Impact Weapon . | . . . . . . Slashing Weapon . | . . . . . . Piercing Weapon 1 | . . . . 1 . Special Melee Weapon . | . . . . . . Unidentified Prototypes . | . . . . . . Parts Lost 6 | . . 1 . . 5 Power . | . . . . . . Propulsion 3 | . . 1 . . 2 Utility . | . . . . . . Weapon 3 | . . . . . 3 Highest Loss Streak 5 | . . 1 . . 5 To Critical Strikes . | . . . . . . Average Slot Usage (%) 97 | . 90 87 100 100 98 Engine 11 | . 14 11 11 11 11 Leg 31 | . 28 22 33 33 31 Storage 11 | . 14 11 11 11 11 Processor 20 | . 5 21 22 22 22 Ballistic Gun 22 | . 28 22 22 21 21 Naked Turns . | . . . . . . Heaviest Build 32 | 14 14 32 31 27 27 Greatest Support 30 | 20 20 30 30 30 30 Greatest Overweight (x) 2 | . . 1 1 . 2 Average Overweight (x) . | . . . . . . Largest Inventory Capacity 15 | 8 8 15 15 15 15 Average Capacity 13 | 6 8 9 15 15 15 Most Carried 15 | 5 4 13 13 15 15 Average Carried 12 | 1 2 7 12 14 14 Final Capacity 15 | 8 8 15 15 15 15 Final Carried 15 | 2 4 13 13 15 14 Class Distribution -------------------- 80% | Scavenger-Mutant 19% | Mutant Dominant Class ---------------- Mutant | -10/Materials Mutant | -9/Materials Scavenger-Mutant | -9/Mines Scavenger-Mutant | -7/Zion Scavenger-Mutant | -7/Deep Caves Resources | -11 -10 -9 -9 -7 -7 ----------- Run | Yrd Mat Mat Min Zio Dee Matter Collected 633 | 277 45 255 36 . 20 Remotely . | . . . . . . Salvage Created 492 | 29 45 382 36 . . Parts 44 | 3 3 31 7 . . Haulers Intercepted . | . . . . . . Recyclers Shooed . | . . . . . . Parts Field Recycled . | . . . . . . Retrieved Matter . | . . . . . . Parts Self-Destructed . | . . . . . . Prevented . | . . . . . . Kills | -11 -10 -9 -9 -7 -7 ------- Run | Yrd Mat Mat Min Zio Dee Combat Hostiles Destroyed 15 | . 1 11 3 . . Guns 15 | . 1 11 3 . . Classes Destroyed 6 | 1 2 3 . . . Worker 1 | . 1 . . . . Tunneler 2 | 2 . . . . . Watcher 1 | . . 1 . . . Swarmer 7 | . . 4 3 . . Grunt 6 | . 1 5 . . . Sentry 2 | . . 2 . . . Best Kill Streak 9 | 2 1 9 3 . . Combat Bots Only 9 | . 1 9 3 . . Max Kills in Single Turn 1 | 1 1 1 1 . . Gunslinging . | . . . . . . Exploded . | . . . . . . Melee . | . . . . . . Uniques/NPCs Destroyed . | . . . . . . Combat | -11 -10 -9 -9 -7 -7 -------- Run | Yrd Mat Mat Min Zio Dee Hostile Shots Fired 102 | . 7 44 14 . 37 Missed 27 | . 4 10 3 . 10 Damage Taken 1353 | . 34 379 97 . 843 Core 412 | . . 97 18 . 297 Absorbed by Shields . | . . . . . . Regen/Repaired (Parts) 196 | . . . . 196 . Core Remaining (%) 100 | 100 100 . . . . Volleys Fired 54 | 3 10 28 5 . 8 Largest 2 | 2 2 2 2 . 2 Hottest 43 | 40 40 43 43 . 43 Shots Fired 108 | 6 20 56 10 . 16 Gun 108 | 6 20 56 10 . 16 Cannon . | . . . . . . Launcher . | . . . . . . Special . | . . . . . . Kinetic 108 | 6 20 56 10 . 16 Thermal . | . . . . . . Explosive . | . . . . . . Electromagnetic . | . . . . . . Robot Hit Streak 13 | 3 6 13 8 . 3 Robot Miss Streak 6 | 1 5 6 1 . 3 Penetration Max . | . . . . . . Secondary Targets . | . . . . . . Shots Hit Robots 65 | 4 10 36 8 . 7 Core Hits 30 | 2 4 16 4 . 4 Critical Kills . | . . . . . . Critical Parts Destroyed . | . . . . . . Critical Strikes . | . . . . . . Melee Attacks . | . . . . . . Impact . | . . . . . . Slashing . | . . . . . . Piercing . | . . . . . . Sneak Attacks . | . . . . . . Combat Hostiles . | . . . . . . Follow-up Attacks . | . . . . . . Damage Inflicted 868 | 52 123 483 102 . 108 Guns 868 | 52 123 483 102 . 108 Cannons . | . . . . . . Explosions . | . . . . . . Melee . | . . . . . . Ramming . | . . . . . . Kinetic 868 | 52 123 483 102 . 108 Thermal . | . . . . . . Explosive . | . . . . . . Electromagnetic . | . . . . . . Impact . | . . . . . . Slashing . | . . . . . . Piercing . | . . . . . . Highest Corruption . | . . . . . . Average Corruption . | . . . . . . Corruption Purged . | . . . . . . Corruption Blocked . | . . . . . . Overload Shots . | . . . . . . Overflow Damage . | . . . . . . Projectiles . | . . . . . . Explosions . | . . . . . . Melee . | . . . . . . Knockbacks . | . . . . . . Impact . | . . . . . . Kinetic . | . . . . . . Secondary . | . . . . . . Self-Inflicted Damage . | . . . . . . Shots . | . . . . . . Rammed . | . . . . . . Targets Rammed . | . . . . . . Kicked . | . . . . . . Crushed . | . . . . . . Highest Temperature 50 | . . 6 . . 50 Average Temperature 19 | . . 2 . . 22 Received Heat Transfer 405 | . 18 138 6 . 243 Siege Activations . | . . . . . . Robots Corrupted . | . . . . . . Combat Hostiles . | . . . . . . Parts Fried . | . . . . . . Impact Corruptions . | . . . . . . Robots Melted . | . . . . . . Combat Hostiles . | . . . . . . Parts Melted . | . . . . . . Heat Transferred . | . . . . . . Parts Sabotaged . | . . . . . . Parts Stolen . | . . . . . . Parts Stripped . | . . . . . . Power Chain Reactions . | . . . . . . Alert | -11 -10 -9 -9 -7 -7 ------- Run | Yrd Mat Mat Min Zio Dee Peak Influence 334 | 10 73 334 230 . . Initial 130 | . 6 30 130 . . Average 122 | 1 43 171 174 . . Maximum Alert Level 1 | . . 1 1 . . Low Security (%) 69 | 100 100 51 50 . . Level 1 30 | . . 48 49 . . Level 2 . | . . . . . . Level 3 . | . . . . . . Level 4 . | . . . . . . Level 5 . | . . . . . . High Security . | . . . . . . Max Security . | . . . . . . Squads Dispatched 2 | . 1 1 . . . Investigation 1 | . . 1 . . . Extermination . | . . . . . . Reinforcement 1 | . 1 . . . . Assault . | . . . . . . Garrison . | . . . . . . Intercept . | . . . . . . Searches Triggered . | . . . . . . Construction Impeded . | . . . . . . Haulers Reinforced . | . . . . . . Active Scanning Responses . | . . . . . . Cargo Convoy Interrupts . | . . . . . . Stealth | -11 -10 -9 -9 -7 -7 --------- Run | Yrd Mat Mat Min Zio Dee Distress Signals 2 | . . 2 . . . Communications Jammed . | . . . . . . Distress Signals . | . . . . . . Times Spotted 31 | . 6 16 6 . 3 Peak Tracking Total 7 | . 2 7 4 . 3 Tactical Retreats 2 | . . 1 1 . . Traps | -11 -10 -9 -9 -7 -7 ------- Run | Yrd Mat Mat Min Zio Dee Traps Triggered 1 | . . 1 . . . Indirectly . | . . . . . . Trap Hack Attempts . | . . . . . . Triggered . | . . . . . . Disarmed . | . . . . . . Reprogrammed . | . . . . . . Reused . | . . . . . . Traps Extracted . | . . . . . . Installed . | . . . . . . Triggered . | . . . . . . Machines | -11 -10 -9 -9 -7 -7 ---------- Run | Yrd Mat Mat Min Zio Dee Machines Disabled 1 | . . . . . 1 Max in Single Turn . | . . . . . . Machines Repaired . | . . . . . . Machines Dismantled . | . . . . . . Machines Sabotaged . | . . . . . . Overloaded Fab Kills . | . . . . . . Hacking | -11 -10 -9 -9 -7 -7 --------- Run | Yrd Mat Mat Min Zio Dee Machines Accessed . | . . . . . . Terminals . | . . . . . . Fabricators . | . . . . . . Repair Stations . | . . . . . . Recycling Units . | . . . . . . Scanalyzers . | . . . . . . Garrison Access . | . . . . . . Total Hacks . | . . . . . . Successful . | . . . . . . Failed . | . . . . . . Catastrophic . | . . . . . . Database Lockouts . | . . . . . . Manual 8 | . . . . 8 . Terminals . | . . . . . . Fabricators . | . . . . . . Repair Stations . | . . . . . . Recycling Units . | . . . . . . Scanalyzers . | . . . . . . Garrison Access . | . . . . . . Terminal Hacks . | . . . . . . Fabricator Hacks . | . . . . . . Repair Station Hacks . | . . . . . . Recycling Unit Hacks . | . . . . . . Scanalyzer . | . . . . . . Garrison Access Hacks . | . . . . . . Unauthorized Hacks . | . . . . . . Terminals . | . . . . . . Fabricators . | . . . . . . Repair Stations . | . . . . . . Recycling Units . | . . . . . . Scanalyzers . | . . . . . . Garrison Access . | . . . . . . Data Cores Recovered . | . . . . . . Used . | . . . . . . Hacking Detections . | . . . . . . Full Trace Events . | . . . . . . Feedback Events . | . . . . . . Feedback Blocked . | . . . . . . Robot Schematics Acquired 2 | . . . . 2 . Robots Built . | . . . . . . Authchips . | . . . . . . Time . | . . . . . . Total Robot Build Rating . | . . . . . . Part Schematics Acquired 15 | . . . . 15 . Parts Built . | . . . . . . Authchips . | . . . . . . Time . | . . . . . . Total Part Build Rating . | . . . . . . Parts Repaired . | . . . . . . Time . | . . . . . . Parts Recycled . | . . . . . . Recycled Matter . | . . . . . . Retrieved Matter . | . . . . . . Retrieved Components . | . . . . . . Parts Scanalyzed . | . . . . . . Part Schematics Acquired . | . . . . . . Parts Damaged . | . . . . . . Bothacking | -11 -10 -9 -9 -7 -7 ------------ Run | Yrd Mat Mat Min Zio Dee Used RIF Installer . | . . . . . . Robots Hacked . | . . . . . . Non-combat . | . . . . . . Combat . | . . . . . . Robot Hacks Applied . | . . . . . . Relay Couplers Released . | . . . . . . Fabnet Peak Effective % . | . . . . . . Robots Rewired . | . . . . . . Allies Hacked . | . . . . . . Hacks Repelled . | . . . . . . Allies | -11 -10 -9 -9 -7 -7 -------- Run | Yrd Mat Mat Min Zio Dee Total Allies 11 | . . . . 11 . Largest Group 11 | . . . . 11 5 Highest-Rated Group 315 | . . . . 315 123 Highest-Rated Ally 41 | . . . . 41 31 Total Orders . | . . . . . . Ally Attacks 35 | . . . . . 35 Total Damage 347 | . . . . . 347 Kills 2 | . . . . . 2 Allies Corrupted . | . . . . . . Allies Melted . | . . . . . . Intel | -11 -10 -9 -9 -7 -7 ------- Run | Yrd Mat Mat Min Zio Dee Robot Analysis Total . | . . . . . . Derelict Logs Recovered 3 | . . . 2 1 . Drone Launches . | . . . . . . Drone Recoveries . | . . . . . . Exploration | -11 -10 -9 -9 -7 -7 ------------- Run | Yrd Mat Mat Min Zio Dee Turns Passed 3214 | 79 277 346 270 2067 175 Spaces Moved 2420 | 62 182 166 168 1716 126 Core 24 | 24 . . . . . Treads . | . . . . . . Legs 2396 | 38 182 166 168 1716 126 Wheels . | . . . . . . Hover . | . . . . . . Flight . | . . . . . . Fastest Speed 50 | 50 120 120 120 120 120 Average Speed 122 | 92 120 136 147 120 121 Slowest Speed 260 | 120 120 190 190 120 260 Overloaded Moves . | . . . . . . Propulsion Burnouts . | . . . . . . Robots Hopped . | . . . . . . Cave-ins Triggered . | . . . . . . Exploration Rate (%) 36 | 4 29 16 48 91 29 Regions Visited 5 Branch Regions 3 Pre-discovered Areas 3 | . . . 1 2 . Known Exits Taken . | . . . . . . Unknown Exits Taken 5 | 1 1 1 1 1 . Scrap Searched 1 | . . . 1 . . Spaces Dug . | . . . . . . Terrain Destroyed . | . . . . . . Melee . | . . . . . . Projectile . | . . . . . . AOE . | . . . . . . Terrain Rammed . | . . . . . . Walls Destroyed . | . . . . . . Machines Disabled . | . . . . . . Actions | -11 -10 -9 -9 -7 -7 --------- Run | Yrd Mat Mat Min Zio Dee Total 2568 | 77 220 230 182 1724 135 Wait 44 | . 26 13 4 1 . Move 2415 | 61 181 165 167 1715 126 Hop . | . . . . . . Pick Up 25 | 7 2 12 . 4 . Fast Attach 7 | 1 1 3 2 . . Attach 6 | 5 . . . . 1 Detach . | . . . . . . Swap 7 | . . 4 1 2 . Drop 10 | . . 5 3 2 . Fire 54 | 3 10 28 5 . 8 Melee . | . . . . . . Ram . | . . . . . . Kick . | . . . . . . Crush . | . . . . . . Escape Stasis . | . . . . . . Rewire . | . . . . . . Trap . | . . . . . . Miscellaneous . | . . . . . . Route ------- -11/Scrapyard -10/Materials -9/Materials -9/Mines (discovered 2 exits: [*Mat] / *Zio) -7/Zion (discovered 2 exits: [*Dee] / [*Pro]) -7/Deep Caves History --------- Turn | Location | Event 3 | -11/Scrapyard | Discovered new exit (range 16) 80 | -11/Scrapyard | Entered Materials 292 | -10/Materials | Discovered new exit (range 4) 313 | -10/Materials | Build established: Mutant 357 | -10/Materials | Entered another Materials area 357 | -9/Materials | Evolved 2 slots: Propulsion x1, Utility x1 504 | -9/Materials | Discovered new exit (range 14) 609 | -9/Materials | Destroyed 9 combat bots 703 | -9/Materials | Entered Mines 897 | -9/Mines | Discovered new exit (range 5) 912 | -9/Mines | Build established: Scavenger-Mutant 913 | -9/Mines | Learned Materials garrison access intel 964 | -9/Mines | A Derelict revealed a hidden shortcut to a safe place 973 | -9/Mines | Entered Zion 1386 | -7/Zion | Found Prototype Device 1446 | -7/Zion | Found CR-A16's Pointy Stick 1521 | -7/Zion | Given A8's code to call for help 1625 | -7/Zion | Visited the Megawrench Repair Shop 1632 | -7/Zion | Megawrench repaired 6 parts 1756 | -7/Zion | Gained Derelict followers 2070 | -7/Zion | Imprinted 2072 | -7/Zion | Declared Zion's savior 2816 | -7/Zion | Discovered new exit (range 12) 2829 | -7/Zion | Acquired unknown access codes intercepted by a Zionite 3013 | -7/Zion | Opened final containment barrier to the Deep Caves 3031 | -7/Zion | Discovered new exit (range 5) 3033 | -7/Zion | Saw the warning signs outside the Deep Caves entrance 3040 | -7/Zion | Entered Deep Caves 3040 | -7/Deep Caves | Accompanied by 6 allies 3172 | -7/Deep Caves | Z-Facility disabled 3186 | -7/Deep Caves | Attacked by Z-Imprinter 3208 | -7/Deep Caves | Core integrity fell below 50% 3213 | -7/Deep Caves | Core integrity fell below 20% 3215 | -7/Deep Caves | Destroyed by Z-Imprinter with Zionite Laser-M Last Messages --------------- you ruin everything! 03187_ Q2-GWG(l) destroyed. 03188_ Z1-PJI(l) destroyed. 03189_ YX-ZD8(s) destroyed. 03198_ 0K-FZK(g) heat spikes uncontrollably. 03198_ 0K-FZK(g) destroyed. 03198_ G7-7JL(o) suffers critical hit (Burn). 03200_ G7-7JL(o) heat damages Mak. Hacking Suite. 03201_ G7-7JL(o) heat short circuits Hover Unit. 03202_ G7-7JL(o) heat damages Mak. Hacking Suite. 03205_ Aluminum Leg destroyed. 03207_ G7-7JL(o) heat damages Hover Unit. 03209_ Hvy. Assault Rifle destroyed. 03209_ Aluminum Leg destroyed. 03210_ G7-7JL(o) heat spikes uncontrollably. 03212_ Assault Rifle destroyed. 03212_ G7-7JL(o) destroyed. 03215_ Lgt. Assault Rifle destroyed. Map ----- +----------------------------------------------------+ | ?????????????????????????????????????????????????? | | ?????????????????????????????????????????????????? | | ?????????????????????????????????????######??????? | | ????????????????????????????? ?????### #??????? | | ???????????????????????????? ##### ??????? | | ???????????????????????????? ??????? | | ??????????????????????????? ??????# | | ??????????????????????????? #??????# | | ??????????????????????????? #??????# | | ?????????????????????? ##????## | | ???????????????????? ###### | | ??????????????????" | | ??????????????????" | | ????????????????? | | ?????????????????"" ##### | | ?????????????????"" ###???# | | ??????????????""""" ##????## | | ?????????????"""""" #?????# | | ????????????"" " " ##????# | | ????????????"""o #????# | | ????????????"" z #????# | | ?????????????""o z #????## | | ?????????????"" ##?????# | | ?????????????"""" i I ##?????? | | ???????????""""" " %! =%%* #?????? | | ??????????"" @ #?????# | | ??????????"" """ ##?????# | | ??????????????""""" [ ##??????# | | ??????????????"""""" %* ##??????# | | ?????????????""""""" = ##?????# | | ??????????"" """"""" #?????? | | ?????????""" """"" #?????? | | ?????????""" """ ##?????? | | ?????????""" / % #??????? | | ?????????"""""""""" ! ##?????? | | ??????????""""""" = #?????? | | ????????? ##????? | | ?????? #????? | | ??????? #????? | | ??????? #???? | | ??????? #???? | | ?????? #???? | | ??????? ##### #???? | | ??????? ####???### #### #???? | | ???????? #?????????######???# ##???? | | ???????? ####????????????????????# ###????? | | ??????????#####?????????????????????????###??????? | | ?????????????????????????????????????????????????? | | | | | +----------------------------------------------------+ Best States ------------- Heat Dissipation 28 Energy Generation 12 Energy Capacity 265 Matter Stores 300 Matter Capacity 300 Sight Range 16 Terrain Scan Density 10 Evasion (%) 55 Targeting Accuracy 11 Item Schematics ----------------- Neutrino Core | -7/Zion | Archive Transmission Jammer | -7/Zion | Archive Plasma Rifle | -7/Zion | Archive Mak. Light Armor Plating | -7/Zion | Archive Adv. Melee Analysis Suite | -7/Zion | Archive Adv. Terrain Scan Processor | -7/Zion | Archive Angular Momentum Engine | -7/Zion | Archive Imp. Titanium Leg | -7/Zion | Archive Lyr. Medium Armor Plating | -7/Zion | Archive Mak. Spear | -7/Zion | Archive Field Propulsion Drive | -7/Zion | Archive Hvy. Flak Cannon | -7/Zion | Archive Lightning Gun | -7/Zion | Archive Imp. Salvage Targeting Computer | -7/Zion | Archive 0b10 Decoder Chip [Generic] | -7/Zion | Archive Robot Schematics ------------------ L-41 Fighter | -7/Zion | Archive K-01 Serf | -7/Zion | Archive Fabricated ------------ Nothing Alien Tech Used ----------------- None Achievements -------------- Adventurer Robot Respite Signs Are For Wimps The More The Merrier The One Challenges ------------ None Game ------ Seed PulseNeutrinoTube Manual? 0 Play Time 00:34:18 Cumulative 3.3 hours Start 2024.04.11 @ 14:11:57 End 2024.04.11 @ 15:46:20 Sessions 1 Manual Loads 0 Difficulty Rogue Special Mode None Game No. 6 Rogue 6 Adventurer 0 Explorer 0 Win Type - Total 0 Types 0/0/0/0/0/0/0/0/0 Lore% 15 Gallery% 5 Achievement% 8 Wizard Run 0 Options --------- Layout 1 ASCII 0 Keyboard 0 Movement Vi Keybinds 0 Fullscreen 2 Font 24/Smallcaps Map View 50x35 Zoom Use 0% Tactical HUD 1 Map Filters NONE Filters NONE Steam 1 RUN: a427b164-925f-424c-ad9d-971274f83ff5